bitfinex/quotes_ETHUSD_20230110
["timestamp","ask_amount","ask_price","bid_price","bid_amount"]
[1673382167095,29.862,1344.4,1343.9,26.75188525]
[1673382167307,29.862,1344.4,1344.2,22.31808]
[1673382167520,0.002,1344.4,1344.3,16.17462]
[1673382167698,0.002,1344.6,1344.3,8.83381]
[1673382167916,14.21825035,1344.6,1344.3,1.395]
[1673382168164,14.22025035,1344.6,1344.3,1.297]
[1673382168370,6.78287035,1344.6,1344.3,1.297]
[1673382168583,6.78287035,1344.6,1344.3,16.17425]
[1673382168807,4.57680135,1344.6,1344.3,16.27225]
[1673382168966,4.57480135,1344.6,1344.3,16.27225]
[1673382169519,4.57480135,1344.6,1344.3,23.71106]
[1673382169694,3.79766064,1344.6,1344.3,23.71106]
[1673382170849,18.67204064,1344.6,1344.3,0.328]
[1673382171105,20.5407447,1344.5,1344.2,15.8976]
[1673382171315,27.9808447,1344.5,1344.2,15.8976]
[1673382171480,20.5427447,1344.5,1344.2,15.8976]
[1673382171693,13.1046447,1344.5,1344.2,15.8976]
[1673382171951,3.79766064,1344.4,1344.2,15.8976]
[1673382172162,3.79766064,1344.4,1344.2,0.098]
[1673382172163,5.3454267,1344.3,1344.2,0.098]
[1673382172530,5.3474267,1344.3,1344.0,7.53804]
[1673382173107,5.3474267,1344.3,1344.0,14.97851]
[1673382173318,4.1794267,1344.3,1344.0,14.97851]
[1673382173579,4.1774267,1344.3,1344.0,14.97851]
[1673382174370,4.1774267,1344.3,1344.0,7.53474092]
[1673382175001,11.6162567,1344.3,1344.0,7.53474092]
[1673382175246,11.6182567,1344.3,1344.0,7.53474092]
[1673382175991,0.002,1344.3,1344.0,22.41568092]
[1673382176225,10.44790406,1344.5,1344.1,2.73234881]
[1673382176524,11.23742064,1344.5,1344.1,17.61152881]
[1673382176699,3.79966064,1344.5,1344.1,25.14944881]
[1673382177042,6.4710497,1344.5,1344.1,17.70952881]
[1673382177211,13.9108797,1344.5,1344.1,25.14944881]
[1673382177418,6.4730497,1344.5,1344.1,25.14944881]
[1673382177652,13.9108197,1344.5,1344.1,17.70952881]
[1673382178413,6.4730497,1344.5,1344.1,17.70952881]
[1673382178590,13.9108197,1344.5,1344.1,17.70952881]
[1673382178812,5.18874261,1344.4,1344.1,0.33034881]
[1673382179027,14.87762,1344.3,1344.1,0.23]
[1673382179338,7.44081,1344.3,1344.0,0.23]
[1673382179573,7.44081,1344.3,1344.0,2.73]
[1673382179782,2.01522626,1344.3,1344.0,7.67044]
[1673382180097,2.01522626,1344.3,1344.0,10.26844]
[1673382180098,2.01322626,1344.3,1344.0,10.26844]
[1673382180415,2.01322626,1344.3,1344.0,7.76844]
[1673382182074,2.01322626,1344.3,1344.0,9.76844]
[1673382182262,2.01322626,1344.3,1344.0,15.20891]
[1673382183426,2.01322626,1344.3,1344.0,7.76844]
[1673382183654,2.01322626,1344.3,1344.0,22.64938]
[1673382183898,5.25474261,1344.4,1344.0,22.64938]
[1673382184117,5.19074261,1344.4,1344.0,22.64938]
[1673382184834,5.19074261,1344.4,1344.0,15.20891]
[1673382185065,5.19074261,1344.4,1344.0,22.64938]
[1673382185688,5.19074261,1344.4,1344.0,15.20891]
[1673382185879,0.51907426,1344.3,1344.0,15.20891]
[1673382186308,0.51907426,1344.3,1344.0,22.64938]
[1673382186964,0.51907426,1344.3,1344.0,15.20891]
[1673382187704,0.51907426,1344.3,1344.0,22.64938]
[1673382187859,0.066,1344.4,1344.0,22.64938]
[1673382188065,18.49864,1344.6,1344.1,2.5]
[1673382188280,22.23230064,1344.6,1344.1,17.37906]
[1673382188533,22.23230064,1344.6,1344.1,17.47706]
[1673382188740,2.22323006,1344.5,1344.1,24.91698]
[1673382189063,14.85885064,1344.6,1344.1,24.91698]
[1673382189286,14.79485064,1344.6,1344.1,24.91698]
[1673382189451,14.79485064,1344.6,1344.2,7.66926]
[1673382189663,14.79485064,1344.6,1344.2,7.76726]
[1673382190015,0.56,1344.6,1344.3,2.5]
[1673382190171,22.2409,1344.7,1344.4,14.87652]
[1673382190172,22.8009,1344.7,1344.4,14.87652]
[1673382190382,0.002,1344.7,1344.4,22.41278]
[1673382190747,30.63910965,1344.8,1344.5,7.66758]
[1673382190922,8.21531965,1344.8,1344.5,0.328]
[1673382191133,8.21531965,1344.8,1344.5,0.23]
[1673382191344,10.94695915,1344.8,1344.5,0.23]
[1673382191575,0.77910965,1344.8,1344.5,0.23]
[1673382191813,0.77710965,1344.8,1344.5,0.23]
[1673382192378,0.2655836,1344.9,1344.5,0.23]
[1673382192632,10.2013736,1344.9,1344.5,0.23]
[1673382192853,21.43652424,1344.9,1344.5,0.23]
[1673382193004,2.70165242,1344.8,1344.5,0.23]
[1673382193213,2.14365242,1344.8,1344.5,0.23]
[1673382193743,0.8894836,1344.9,1344.5,0.23]
[1673382193954,2.3234836,1344.9,1344.5,15.10527]
[1673382194167,17.1945436,1344.9,1344.5,0.328]
[1673382194401,17.1965436,1344.9,1344.5,0.22720124]
[1673382194585,15.6965436,1344.9,1344.5,2.72720124]
[1673382195054,18.55829224,1344.9,1344.5,7.66489124]
[1673382195254,18.55829224,1344.9,1344.5,7.76289124]
[1673382195692,25.99382224,1344.9,1344.5,7.76290124]
[1673382195861,25.99382224,1344.9,1344.5,2.32520124]
[1673382196074,25.99382224,1344.9,1344.5,9.66490124]
[1673382196075,11.12276224,1344.9,1344.5,9.66490124]
[1673382196424,11.12272224,1344.9,1344.5,7.76290124]
[1673382196649,25.99370224,1344.9,1344.5,0.32520124]
[1673382196955,25.99370224,1344.9,1344.5,0.22720124]
[1673382197109,18.55821224,1344.9,1344.5,0.22720124]
[1673382197322,18.55821224,1344.9,1344.5,7.66485124]
[1673382197548,11.12273224,1344.9,1344.5,15.20055124]
[1673382197760,3.68723224,1344.9,1344.5,15.20055124]
[1673382197987,3.68523224,1344.9,1344.5,22.63825124]
[1673382198376,0.8234836,1344.9,1344.5,22.63825124]
[1673382199057,0.8234836,1344.9,1344.6,2.5]
[1673382199268,0.2655836,1344.9,1344.7,0.23]
[1673382200370,1.3671843,1345.0,1344.9,1.33258358]
[1673382200581,1.3011843,1345.0,1344.9,1.56258358]
[1673382200795,1.5579555,1345.1,1344.9,9.43436194]
[1673382201037,0.3315836,1345.2,1344.9,9.43436194]
[1673382201038,0.2655836,1345.2,1345.0,21.0356362]
[1673382201207,7.42949049,1347.1,1345.4,2.95041809]
[1673382201429,7.919,1347.2,1346.7,14.0]
[1673382201690,4.82161524,1347.4,1346.9,29.6978]
[1673382201691,0.29911588,1347.4,1346.9,29.6978]
[1673382201845,6.43575391,1347.4,1347.2,14.8456]
[1673382202045,0.8998174,1347.8,1347.2,22.3664]
[1673382202319,14.8998174,1347.8,1347.3,0.23]
[1673382202476,2.5,1347.5,1347.3,0.23]
[1673382202711,18.64234824,1347.8,1347.2,0.075]
[1673382202712,5.1384718,1347.7,1347.2,0.075]
[1673382202960,14.84838,1347.0,1346.7,0.06]
[1673382203222,22.27278,1347.0,1346.6,1.7283716]
[1673382203498,0.002,1347.0,1346.0,0.5575]
[1673382203711,7.425,1346.8,1346.3,0.19736407]
[1673382203903,22.27866,1346.6,1345.8,0.8567345]
[1673382204078,29.90996407,1346.3,1345.6,0.133]
[1673382204447,29.71788,1346.0,1345.7,2.5]
[1673382204618,3.0,1345.9,1345.5,0.45623625]
[1673382204829,22.29189,1345.8,1345.5,0.38823625]
[1673382205062,0.062,1345.8,1345.5,2.23192792]
[1673382205242,7.43398,1345.9,1345.6,14.5576]
[1673382205243,0.052,1345.9,1345.6,14.5576]
[1673382205599,7.49383,1346.3,1345.7,8.0]
[1673382205757,0.052,1346.3,1345.8,6.11531282]
[1673382205967,0.297304,1346.4,1345.8,5.98760124]
[1673382206183,0.297304,1346.4,1345.9,19.0449283]
[1673382206408,0.297304,1346.4,1346.0,0.23]
[1673382206610,0.297304,1346.4,1345.8,0.068]
[1673382206611,15.151994,1346.4,1345.8,0.068]
[1673382206877,15.151994,1346.4,1345.6,12.42042796]
[1673382206878,0.3458,1346.3,1345.6,12.42042796]
[1673382207033,14.85784,1346.1,1345.6,8.1484]
[1673382207237,14.90984,1346.1,1345.6,8.1484]
[1673382207452,14.90984,1346.1,1345.6,0.068]
[1673382207453,1.490984,1346.0,1345.6,0.068]
[1673382207702,1.490984,1346.0,1345.4,10.80714605]
[1673382207703,7.42991,1346.0,1345.4,10.80714605]
[1673382207892,7.42991,1346.0,1345.5,2.5]
[1673382207893,14.91112,1346.0,1345.5,2.5]
[1673382208078,7.48156,1346.0,1345.4,7.84814605]
[1673382208293,2.5,1345.9,1345.4,7.84814605]
[1673382208502,14.92512,1346.0,1345.9,2.41688983]
[1673382208731,12.216975,1346.0,1345.9,2.41688983]
[1673382209877,23.75471401,1346.0,1345.3,4.49169079]
[1673382210135,23.75471401,1346.0,1345.6,0.004]
[1673382210136,3.25211901,1345.9,1345.6,0.004]
[1673382210311,3.25211901,1345.9,1345.3,3.99989079]
[1673382210312,2.5,1345.7,1345.3,3.99989079]
[1673382210530,14.86335,1345.6,1345.3,3.93389079]
[1673382210848,2.5,1345.5,1345.3,3.93389079]
[1673382211078,14.86546,1345.4,1345.2,0.81047573]
[1673382211235,2.5,1345.3,1345.0,0.066]
[1673382211451,2.5,1345.3,1344.9,0.31763118]
[1673382211710,14.86788,1345.2,1344.9,0.31763118]
[1673382211924,2.5,1345.1,1344.9,0.31763118]
[1673382212228,0.58212635,1345.2,1344.9,0.31763118]
[1673382212438,0.51612635,1345.2,1344.9,0.31763118]
[1673382213451,7.95021635,1345.2,1344.9,0.31763118]
[1673382213681,8.01412635,1345.2,1344.9,0.31763118]
[1673382213890,0.80141263,1345.1,1344.9,0.31763118]
[1673382215168,3.30141263,1345.1,1344.9,0.31763118]
[1673382215385,15.45046635,1345.2,1345.0,0.76496614]
[1673382215386,0.58212635,1345.2,1345.0,0.76496614]
[1673382215612,0.066,1345.6,1345.2,1.1662527]
[1673382215766,14.8633,1345.6,1345.2,1.1662527]
[1673382215967,1.48633,1345.5,1345.2,1.1662527]
[1673382216433,7.85332,1345.6,1345.5,1.46507234]
[1673382216595,7.85132,1345.6,1345.5,1.46507234]
[1673382217010,0.064,1345.6,1345.5,1.46507234]
[1673382217227,19.105415,1346.0,1345.5,1.61157957]
[1673382217228,19.171415,1346.0,1345.5,1.61157957]
[1673382217481,7.43003,1345.9,1345.5,1.46507234]
[1673382217747,2.5,1345.8,1345.5,1.46507234]
[1673382217914,7.43107,1345.7,1345.5,1.46507234]
[1673382218123,2.5,1345.6,1345.3,0.066]
[1673382218347,2.5,1345.6,1345.2,1.1662527]
[1673382218348,7.43218,1345.5,1345.2,1.1662527]
[1673382218530,0.743218,1345.4,1345.2,1.1662527]
[1673382218951,29.608938,1345.4,1345.2,1.1662527]
[1673382219275,19.85056,1345.3,1345.2,1.1662527]
[1673382219469,19.91456,1345.3,1345.2,1.1662527]
[1673382220100,0.42,1345.3,1345.2,1.1662527]
[1673382220361,0.356,1345.3,1345.2,1.1662527]
[1673382220577,2.5,1345.4,1345.2,1.1662527]
[1673382220734,7.68328,1345.3,1345.2,1.1662527]
[1673382220939,15.16856,1345.3,1345.2,1.1662527]
[1673382221266,7.73528,1345.3,1345.2,1.1662527]
[1673382221493,1.363,1345.3,1345.2,1.1662527]
[1673382221840,8.74428,1345.3,1345.2,1.1662527]
[1673382222027,1.363,1345.3,1345.2,1.1662527]
[1673382222367,1.311,1345.3,1345.2,1.1662527]
[1673382222565,8.74428,1345.3,1345.2,1.1662527]
[1673382222768,8.79628,1345.3,1345.2,1.1662527]
[1673382222988,0.052,1345.3,1345.2,1.1662527]
[1673382223315,15.02025438,1345.6,1345.3,0.15599999]
[1673382223616,3.0,1345.5,1345.3,0.15599999]
[1673382223781,10.4325,1345.5,1345.3,0.15599999]
[1673382224140,17.36546,1345.4,1345.3,0.15599999]
[1673382224355,17.41746,1345.4,1345.3,0.15599999]
[1673382224515,21.603856,1345.4,1345.3,0.15599999]
[1673382224883,6.738396,1345.4,1345.3,0.15599999]
[1673382225091,1.113,1345.4,1345.3,0.15599999]
[1673382225270,3.066,1345.5,1345.3,0.15599999]
[1673382225473,0.95425438,1345.6,1345.3,0.15599999]
[1673382225474,5.52025438,1345.6,1345.3,0.15599999]
[1673382225705,5.50625438,1345.6,1345.3,0.15599999]
[1673382225890,12.93793438,1345.6,1345.3,0.15599999]
[1673382226096,9.68772382,1345.6,1345.3,0.15599999]
[1673382226733,3.79766064,1345.5,1345.3,0.15599999]
[1673382226964,3.79766064,1345.4,1345.3,0.15599999]
[1673382227596,0.066,1345.5,1345.3,0.15599999]
[1673382227785,0.066,1345.5,1345.3,1.03155926]
[1673382227786,3.79766064,1345.5,1345.3,1.03155926]
[1673382228141,3.79766064,1345.5,1345.3,0.15599999]
[1673382228142,3.79766064,1345.4,1345.3,0.15599999]
[1673382228453,21.16312064,1345.4,1345.3,0.15599999]
[1673382228611,21.21512064,1345.4,1345.3,0.15599999]
[1673382229773,6.34966064,1345.4,1345.3,0.15599999]
[1673382230100,3.84966064,1345.4,1345.3,0.15599999]
[1673382230325,3.79766064,1345.4,1345.3,0.15599999]
[1673382230979,2.566,1345.5,1345.3,0.15599999]
[1673382231291,11.23039064,1345.4,1345.3,0.15599999]
[1673382231458,18.71512064,1345.4,1345.3,0.15599999]
[1673382232110,13.28239064,1345.4,1345.3,0.15599999]
[1673382232493,5.84966064,1345.4,1345.3,0.15599999]
[1673382232919,3.84966064,1345.4,1345.3,0.15599999]
[1673382233141,0.155,1345.3,1344.9,0.38363118]
[1673382233371,0.155,1345.3,1344.9,0.31763118]
[1673382233372,22.30317,1345.1,1344.9,0.31763118]
[1673382233588,18.66754064,1345.0,1344.9,0.31763118]
[1673382233759,18.72154064,1345.0,1344.9,0.31763118]
[1673382233982,21.3363337,1345.0,1344.9,0.31763118]
[1673382234545,28.7712737,1345.0,1344.9,0.31763118]
[1673382234947,13.9013937,1345.0,1344.9,0.31763118]
[1673382235357,6.4664537,1345.0,1344.9,0.31763118]
[1673382235703,28.65448064,1345.0,1344.9,0.31763118]
[1673382235859,28.67332064,1345.0,1344.9,0.31763118]
[1673382236243,28.65448064,1345.0,1344.9,0.31763118]
[1673382236382,45.65448064,1345.0,1344.9,0.31763118]
[1673382236600,10.355,1344.9,1344.6,0.01998641]
[1673382236854,27.14128064,1344.8,1344.6,0.01998641]
[1673382237041,3.79766064,1344.7,1344.6,0.01998641]
[1673382237239,23.15459853,1344.7,1344.6,0.01998641]
[1673382237444,23.15659853,1344.7,1344.6,0.01998641]
[1673382238434,0.002,1344.7,1344.6,0.01998641]
[1673382238758,2.58252,1344.9,1344.6,0.01998641]
[1673382238922,3.79766064,1344.8,1344.6,0.77430869]
[1673382239135,0.12855,1344.9,1344.8,3.9365542]
[1673382239359,45.05139,1345.3,1344.9,0.00206332]
[1673382239572,6.29766064,1345.2,1344.9,0.00206332]
[1673382239781,3.79766064,1345.1,1344.9,0.00206332]
[1673382239994,11.23213064,1345.1,1344.9,0.00206332]
[1673382240318,35.5852377,1345.1,1344.9,0.00206332]
[1673382240535,4.32938705,1345.0,1344.9,0.00206332]
[1673382240691,19.19926705,1345.0,1344.9,0.00206332]
[1673382240903,19.25126705,1345.0,1344.9,0.00206332]
[1673382241673,19.25126705,1345.0,1344.8,1.93362327]
[1673382241674,2.5,1344.9,1344.8,1.93362327]
[1673382241887,15.53279673,1344.9,1344.8,1.93362327]
[1673382242078,15.58679673,1344.9,1344.8,1.93362327]
[1673382242297,26.02028673,1344.9,1344.8,1.93362327]
[1673382242480,2.5,1344.8,1344.6,0.01998641]
[1673382242697,26.10746064,1344.7,1344.6,0.01998641]
[1673382243045,30.6702067,1344.7,1344.6,0.01998641]
[1673382243254,8.3604067,1344.7,1344.6,0.01998641]
[1673382243468,3.79966064,1344.7,1344.6,0.01998641]
[1673382243646,18.67086064,1344.7,1344.6,0.01998641]
[1673382243858,18.67286064,1344.7,1344.6,0.01998641]
[1673382244277,11.23626064,1344.7,1344.6,0.01998641]
[1673382244487,26.10946064,1344.7,1344.6,0.01998641]
[1673382244839,31.1704277,1344.7,1344.6,0.01998641]
[1673382245161,45.1704277,1344.7,1344.6,0.01998641]
[1673382245758,52.4137365,1344.7,1344.6,0.01998641]
[1673382245983,48.1892977,1344.7,1344.6,0.01998641]
[1673382246185,52.4951565,1344.7,1344.6,0.01998641]
[1673382246399,52.4971565,1344.7,1344.6,0.01998641]
[1673382246629,48.2518477,1344.7,1344.6,0.01998641]
[1673382247432,45.2518477,1344.7,1344.6,0.01998641]
[1673382247642,45.2518477,1344.7,1344.6,8.52413641]
[1673382247643,0.06455,1344.7,1344.6,8.52413641]
[1673382247917,0.06255,1344.7,1344.6,0.08598641]
[1673382248065,11.29681064,1344.7,1344.6,0.01998641]
[1673382248273,11.29881064,1344.7,1344.6,0.01998641]
[1673382248736,13.9223797,1344.7,1344.6,0.01998641]
[1673382248953,35.3589797,1344.7,1344.6,0.01998641]
[1673382249332,42.8194097,1344.7,1344.6,0.01998641]
[1673382249693,45.8194097,1344.7,1344.6,0.01998641]
[1673382249879,50.0627185,1344.7,1344.6,0.01998641]
[1673382250096,45.8194097,1344.7,1344.6,0.01998641]
[1673382252267,57.9177185,1344.7,1344.6,0.01998641]
[1673382252484,53.6744097,1344.7,1344.6,0.01998641]
[1673382253886,45.8194097,1344.7,1344.6,0.01998641]
[1673382254098,21.75924064,1344.7,1344.6,0.01998641]
[1673382254419,29.19584064,1344.7,1344.6,0.01998641]
[1673382254632,21.75924064,1344.7,1344.6,0.01998641]
[1673382254999,29.19584064,1344.7,1344.6,0.01998641]
[1673382256097,21.75924064,1344.7,1344.6,0.01998641]
[1673382256259,33.5218027,1344.7,1344.6,0.01998641]
[1673382257013,41.3768027,1344.7,1344.6,0.01998641]
[1673382257654,26.0852027,1344.7,1344.6,0.01998641]
[1673382257887,33.5218027,1344.7,1344.6,0.01998641]
[1673382260399,41.3768027,1344.7,1344.6,0.01998641]
[1673382262465,41.3768027,1344.7,1344.5,0.01998641]
[1673382262466,50.09694895,1344.7,1344.5,0.01998641]
[1673382262771,44.07419971,1344.6,1344.2,0.2564966]
[1673382263042,28.87762,1344.3,1344.2,0.2564966]
[1673382263199,33.55490064,1344.3,1344.2,0.2564966]
[1673382263936,47.55490064,1344.3,1344.2,0.2564966]
[1673382264299,55.3167907,1344.3,1344.2,0.2564966]
[1673382265109,63.1717907,1344.3,1344.2,0.2564966]
[1673382265511,33.0003607,1344.3,1344.2,0.2564966]
[1673382265763,40.4391707,1344.3,1344.2,0.2564966]
[1673382266291,48.63009971,1344.3,1344.2,0.2564966]
[1673382267323,47.8779807,1344.3,1344.2,0.2564966]
[1673382267533,28.23847064,1344.3,1344.2,0.2564966]
[1673382267851,3.79966064,1344.3,1344.2,1.3234966]
[1673382268061,14.94128,1344.4,1344.2,1.3234966]
[1673382268062,0.066,1344.4,1344.2,1.3234966]
[1673382268314,11.23607064,1344.4,1344.2,1.3234966]
[1673382268637,11.23807064,1344.4,1344.2,1.3234966]
[1673382268801,11.23807064,1344.4,1344.2,1.46244626]
[1673382269005,11.23807064,1344.4,1344.2,0.39544626]
[1673382269006,40.11474064,1344.4,1344.2,0.39544626]
[1673382269219,3.79766064,1344.3,1344.2,0.2564966]
[1673382269443,26.11409064,1344.3,1344.2,0.2564966]
[1673382269680,26.11609064,1344.3,1344.2,0.2564966]
[1673382274306,26.11609064,1344.3,1344.2,1.0884091]
[1673382274517,31.6634257,1344.3,1344.2,1.0884091]
[1673382275117,3.79966064,1344.3,1344.2,1.0884091]
[1673382275335,3.79766064,1344.3,1344.2,1.0884091]
[1673382275539,0.066,1344.4,1344.2,1.0884091]
[1673382275747,11.23604064,1344.4,1344.2,1.0884091]
[1673382275958,7.43881,1344.3,1344.2,1.0884091]
[1673382276215,14.87962,1344.3,1344.2,1.20385001]
[1673382276384,22.31843,1344.3,1344.2,1.0884091]
[1673382277931,26.11609064,1344.3,1344.2,1.0884091]
[1673382278227,3.79966064,1344.3,1344.2,1.0884091]
[1673382278442,3.79966064,1344.3,1344.2,2.93454151]
[1673382278443,3.79766064,1344.3,1344.2,2.93454151]
[1673382278602,14.066,1344.4,1344.2,2.93454151]
[1673382278964,14.002,1344.4,1344.2,2.58094386]
[1673382279176,0.002,1344.4,1344.2,2.58094386]
[1673382279350,0.06455,1344.5,1344.3,6.64591551]
[1673382279564,29.86,1344.8,1344.3,13.62446306]
[1673382279565,29.926,1344.8,1344.3,13.62446306]
[1673382279906,33.65966064,1344.8,1344.4,1.84584166]
[1673382280115,25.23773064,1344.8,1344.4,1.84584166]
[1673382280337,32.67180064,1344.8,1344.4,2.13594106]
[1673382280488,32.72180064,1344.8,1344.4,0.2900994]
[1673382280702,32.67180064,1344.8,1344.4,0.2900994]
[1673382281057,0.42151121,1344.7,1344.4,0.93771565]
[1673382281273,7.85841121,1344.7,1344.4,0.93771565]
[1673382281479,7.86041121,1344.7,1344.4,0.93771565]
[1673382282093,11.29794064,1344.8,1344.7,0.68395886]
[1673382282325,11.28594064,1344.8,1344.7,0.97405826]
[1673382282541,37.0955667,1344.8,1344.7,0.97405826]
[1673382282797,44.5575467,1344.8,1344.7,8.26e-06]
[1673382282907,44.5075467,1344.8,1344.7,8.26e-06]
[1673382283116,44.5095467,1344.8,1344.7,8.26e-06]
[1673382283357,44.5075467,1344.8,1344.7,8.26e-06]
[1673382283795,28.0075467,1344.8,1344.7,8.26e-06]
[1673382284009,5.6732467,1344.8,1344.7,8.26e-06]
[1673382284226,3.84966064,1344.8,1344.7,8.26e-06]
[1673382284397,3.79766064,1344.8,1344.7,8.26e-06]
[1673382284588,11.23370064,1344.8,1344.7,8.26e-06]
[1673382284799,11.28570064,1344.8,1344.7,8.26e-06]
[1673382285011,18.72174064,1344.8,1344.7,8.26e-06]
[1673382285275,42.7749327,1344.8,1344.7,8.26e-06]
[1673382285437,42.7538427,1344.8,1344.7,8.26e-06]
[1673382285793,42.7249327,1344.8,1344.7,8.26e-06]
[1673382287476,46.9355221,1344.8,1344.7,8.26e-06]
[1673382287688,65.2597221,1344.8,1344.7,8.26e-06]
[1673382288065,65.2617221,1344.8,1344.7,8.26e-06]
[1673382288272,65.3222721,1344.8,1344.7,8.26e-06]
[1673382288719,61.1116827,1344.8,1344.7,8.26e-06]
[1673382289334,65.3222721,1344.8,1344.7,8.26e-06]
[1673382289555,61.1116827,1344.8,1344.7,8.26e-06]
[1673382290637,65.3222721,1344.8,1344.7,8.26e-06]
[1673382290865,61.1116827,1344.8,1344.7,8.26e-06]
[1673382291003,69.8002721,1344.8,1344.7,8.26e-06]
[1673382294910,74.59435145,1344.8,1344.7,8.26e-06]
[1673382295317,74.59435145,1344.8,1344.2,0.7983097]
[1673382295318,12.333,1344.6,1344.2,0.7983097]
[1673382295671,40.11409064,1344.3,1344.2,0.7983097]
[1673382295837,40.11609064,1344.3,1344.2,0.7983097]
[1673382296050,47.97109064,1344.3,1344.2,0.12419892]
[1673382296259,40.17864064,1344.3,1344.2,0.12419892]
[1673382296691,43.17864064,1344.3,1344.2,0.12419892]
[1673382297005,48.2467807,1344.3,1344.2,0.12419892]
[1673382299307,56.1017807,1344.3,1344.2,0.12419892]
[1673382300154,56.1017807,1344.3,1344.2,9.892e-05]
[1673382300155,60.29752374,1344.3,1344.2,9.892e-05]
[1673382300394,56.1642107,1344.3,1344.2,9.892e-05]
[1673382300872,56.1017807,1344.3,1344.2,9.892e-05]
[1673382301787,64.77475573,1344.3,1344.2,9.892e-05]
[1673382301988,64.83874573,1344.3,1344.2,9.892e-05]
[1673382302207,65.82086474,1344.3,1344.2,9.892e-05]
[1673382302552,42.09268,1344.1,1344.0,0.02465047]
[1673382302727,37.15441,1344.0,1343.9,0.03191069]
[1673382302934,36.53862064,1344.0,1343.9,0.03191069]
[1673382303145,31.68362064,1344.0,1343.9,0.03191069]
[1673382303397,39.53862064,1344.0,1343.9,6.9e-07]
[1673382303604,39.54062064,1344.0,1343.9,6.9e-07]
[1673382303763,46.1640134,1344.0,1343.9,6.9e-07]
[1673382303969,50.6420134,1344.0,1343.9,6.9e-07]
[1673382305041,54.83617621,1344.0,1343.8,5.49e-06]
[1673382305259,33.19321064,1343.9,1343.5,0.80359677]
[1673382305476,33.56842064,1343.6,1343.5,0.80359677]
[1673382305658,49.1822627,1343.6,1343.5,6.77e-06]
[1673382305871,49.2448127,1343.6,1343.5,6.77e-06]
[1673382306120,50.46191959,1343.6,1343.5,6.77e-06]
[1673382306298,50.45955887,1343.6,1343.5,6.77e-06]
[1673382306504,50.45916566,1343.6,1343.5,6.77e-06]
[1673382306721,46.2801227,1343.6,1343.5,6.77e-06]
[1673382306945,14.30490064,1343.6,1343.5,6.77e-06]
[1673382307291,0.06455,1343.6,1343.5,6.77e-06]
[1673382307447,0.06255,1343.6,1343.5,6.77e-06]
[1673382307655,0.06255,1343.6,1343.5,2.50000677]
[1673382308173,14.002,1343.8,1343.6,0.06254999]
[1673382308174,0.002,1343.8,1343.6,0.06254999]
[1673382308499,14.002,1344.0,1343.6,0.31880567]
[1673382308801,3.79766064,1343.7,1343.6,0.06254999]
[1673382312335,26.12405064,1343.7,1343.6,0.06254999]
[1673382312549,26.12605064,1343.7,1343.6,0.06254999]
[1673382312767,18.68392064,1343.7,1343.6,0.06254999]
[1673382313212,26.12605064,1343.7,1343.6,0.06254999]
[1673382313543,18.68392064,1343.7,1343.6,0.06254999]
[1673382313905,26.12605064,1343.7,1343.6,0.06254999]
[1673382314149,3.79966064,1343.7,1343.6,0.06254999]
[1673382314360,3.79766064,1343.7,1343.6,16.01492999]
[1673382314578,14.066,1343.8,1343.6,1.19554999]
[1673382314747,3.79766064,1343.7,1343.6,0.06254999]
[1673382316187,26.12405064,1343.7,1343.6,0.06254999]
[1673382316390,3.79966064,1343.7,1343.6,0.06254999]
[1673382316728,3.79766064,1343.7,1343.6,0.06254999]
[1673382318353,3.79766064,1343.7,1343.6,1.12954999]
[1673382318624,0.066,1343.8,1343.6,16.01492999]
[1673382318800,0.066,1343.8,1343.6,19.19690455]
[1673382318801,3.79766064,1343.8,1343.6,19.19690455]
[1673382318980,3.79766064,1343.8,1343.6,0.12854999]
[1673382319189,3.79766064,1343.8,1343.6,0.06254999]
[1673382319639,3.79766064,1343.8,1343.6,14.94784999]
[1673382319854,0.066,1343.9,1343.6,15.01384999]
[1673382320063,11.23875064,1343.9,1343.6,0.12854999]
[1673382320391,3.79966064,1343.9,1343.6,0.06254999]
[1673382320560,3.79766064,1343.8,1343.6,0.06254999]
[1673382320756,11.23957064,1343.8,1343.6,0.06254999]
[1673382320968,11.24157064,1343.8,1343.6,0.06254999]
[1673382321428,3.79966064,1343.8,1343.6,0.06254999]
[1673382321653,3.79766064,1343.8,1343.6,0.06254999]
[1673382322171,10.13111652,1343.8,1343.6,0.06254999]
[1673382322482,2.69150652,1343.8,1343.6,0.06254999]
[1673382322695,2.68950652,1343.8,1343.6,0.06254999]
[1673382322914,10.13118652,1343.8,1343.6,0.06254999]
[1673382323068,10.13318652,1343.8,1343.6,0.06254999]
[1673382323279,3.79766064,1343.7,1343.6,0.06254999]
[1673382323492,26.12405064,1343.7,1343.6,0.06254999]
[1673382323745,26.12605064,1343.7,1343.6,0.06254999]
[1673382326222,26.18860064,1343.7,1343.6,0.06254999]
[1673382326436,29.20928064,1343.7,1343.6,0.06254999]
[1673382326644,47.7875841,1343.7,1343.6,0.06254999]
[1673382327218,52.2655841,1343.7,1343.6,4.999e-05]
[1673382327381,32.68307,1343.6,1343.5,6.77e-06]
[1673382327590,53.48273064,1343.6,1343.5,6.77e-06]
[1673382327813,53.56925064,1343.6,1343.5,6.77e-06]
[1673382328080,60.78014688,1343.6,1343.5,6.77e-06]
[1673382328651,50.42514688,1343.6,1343.5,6.77e-06]
[1673382328865,28.09707688,1343.6,1343.5,6.77e-06]
[1673382329080,20.88618064,1343.6,1343.5,6.77e-06]
[1673382329309,35.77156064,1343.6,1343.5,6.77e-06]
[1673382329634,43.21425064,1343.6,1343.5,6.77e-06]
[1673382330983,35.77156064,1343.6,1343.5,6.77e-06]
[1673382331195,43.21425064,1343.6,1343.5,6.77e-06]
[1673382331548,49.0718077,1343.6,1343.5,6.77e-06]
[1673382334796,49.0718077,1343.6,1343.3,0.01990651]
[1673382334797,65.57291614,1343.6,1343.3,0.01990651]
[1673382335000,43.60714706,1343.6,1343.4,0.11821087]
[1673382335159,14.0,1343.5,1343.4,0.11821087]
[1673382335526,19.76271471,1343.5,1343.4,0.11821087]
[1673382335677,34.64919471,1343.5,1343.4,0.11821087]
[1673382335896,42.09243471,1343.5,1343.4,0.11821087]
[1673382336955,45.89009535,1343.5,1343.4,0.11821087]
[1673382337374,31.00561535,1343.5,1343.4,0.11821087]
[1673382337588,31.00361535,1343.5,1343.4,0.11821087]
[1673382338574,38.44685535,1343.5,1343.4,0.11821087]
[1673382338725,0.002,1343.5,1343.4,1.18521087]
[1673382338940,0.002,1343.6,1343.5,1.069]
[1673382339206,0.75211901,1343.8,1343.5,8.51224]
[1673382339367,21.6964,1343.9,1343.5,8.51224]
[1673382339368,3.79766064,1343.7,1343.5,8.57824]
[1673382340319,3.79766064,1343.7,1343.5,1.135]